Cogmind - Beta 13 @@@ ROGUE MODE // 2024.04.13 @ 09:35:10 Player: zoefiri Result: Self-destructed Performance ------------- Evolutions (2) 1000 Regions Visited (6) 1200 Robots Destroyed (60) 300 Value Destroyed (1671) 1671 Prototype IDs (26) 520 Alien Tech Used (0) 0 Bonus (375) 375 TOTAL SCORE: 5066 Bonus ------- Follower Combat Kills 94 Aligned with FarCom 300 Friendly Fire -19 Cogmind --------- Core Integrity 421/550 Matter 300/300 Energy 160/160 System Corruption 0% Temperature Cool (0) Movement Walking (120) Location -8/Storage Parts ------- > --- POWER (2) -------- Light Nuclear Core > --- PROPULSION (4) --- Carbon-fiber Leg Carbon-fiber Leg Carbon-fiber Leg Carbon-fiber Leg > --- UTILITY (3) ------ Large Storage Unit Hacking Suite > --- WEAPON (2) ------- Heavy Particle Gun Heavy Particle Gun > --- INVENTORY (15) --- Carbon-fiber Leg Titanium Leg Armored Wheel Improved Hover Unit Improved Hover Unit Improved Hover Unit Airjet Improved Heat Sink Improved Heat Sink Small Storage Unit Supersonic Drone Bay (1/1) Heavy Particle Gun Blade Saw Peak State ------------ > --- POWER ------------ Light Deuterium Engine Light Deuterium Engine > --- PROPULSION ------- Carbon-fiber Leg Carbon-fiber Leg Carbon-fiber Leg Carbon-fiber Leg > --- UTILITY ---------- Large Storage Unit Hardened Medium Armor Plating Hacking Suite > --- WEAPON ----------- Heavy Particle Cannon Improved Light Cannon > --- INVENTORY -------- Light Nuclear Core Carbon-fiber Leg Armored Wheel Improved Hover Unit Improved Hover Unit Improved Hover Unit Airjet Improved Heat Sink Improved Heat Sink Small Storage Unit Light Armor Plating Supersonic Drone Bay Improved Medium Laser Pulse Rifle Blade Saw [Rating: 34] Favorites ----------- Power Light Nuclear Core Engine Light Deuterium Engine Power Core Light Nuclear Core Propulsion Carbon-fiber Leg Treads Light Treads Leg Carbon-fiber Leg Utility Large Storage Unit Device Improved Heat Sink Storage Large Storage Unit Hackware Hacking Suite Protection Light Armor Plating Weapon Improved Light Cannon Energy Gun Pulse Rifle Energy Cannon Heavy Particle Cannon Ballistic Gun Light Assault Rifle Ballistic Cannon Improved Light Cannon Launcher Grenade Launcher Slashing Weapon Blade Saw Build | -11 -10 -10 -10 -9 -8 -8 ------- Run | Yrd Mat Min Exi Min Mat Sto Slots Evolved 4 | . . . . . 4 . Power 1 | . . . . . 1 . Propulsion 2 | . . . . . 2 . Utility 1 | . . . . . 1 . Weapon . | . . . . . . . Parts Attached 66 | 6 7 11 1 . 14 27 Power 9 | 1 2 . . . 3 3 Engine 6 | 1 2 . . . 3 . Core 3 | . . . . . . 3 Reactor . | . . . . . . . Propulsion 21 | 2 . 3 . . 4 12 Treads 12 | 2 . 3 . . 4 3 Leg 9 | . . . . . . 9 Wheel . | . . . . . . . Hover . | . . . . . . . Flight . | . . . . . . . Utility 11 | 1 2 1 1 . 3 3 Device 3 | . 1 . 1 . 1 . Storage 2 | 1 1 . . . . . Processor . | . . . . . . . Hackware 1 | . . . . . . 1 Protection 5 | . . 1 . . 2 2 Artifact . | . . . . . . . Weapon 25 | 2 3 7 . . 4 9 Energy Gun 10 | 2 . . . . 2 6 Energy Cannon 2 | . . . . . . 2 Ballistic Gun 2 | . 2 . . . . . Ballistic Cannon 6 | . . 4 . . 2 . Launcher 4 | . 1 3 . . . . Special Weapon . | . . . . . . . Impact Weapon . | . . . . . . . Slashing Weapon 1 | . . . . . . 1 Piercing Weapon . | . . . . . . . Special Melee Weapon . | . . . . . . . Unidentified Prototypes 3 | . . . . . 2 1 Parts Lost 7 | . . 1 . . . 6 Power 2 | . . . . . . 2 Propulsion 1 | . . . . . . 1 Utility 2 | . . . . . . 2 Weapon 2 | . . 1 . . . 1 Highest Loss Streak 2 | . . 1 . . . 2 To Critical Strikes . | . . . . . . . Average Slot Usage (%) 96 | . 93 99 100 100 99 94 Engine 9 | . 14 14 14 14 18 5 Core 5 | . . . . . . 10 Treads 17 | . 28 28 28 28 36 5 Leg 15 | . . . . . . 30 Device 3 | . 7 . 7 14 12 1 Storage 11 | . 14 14 14 14 9 9 Hackware 3 | . . . . . . 7 Protection 6 | . . 13 6 . 5 6 Energy Gun 7 | . 10 . . . . 12 Ballistic Gun 2 | . 16 . . . . . Ballistic Cannon 11 | . . 27 28 28 17 4 Naked Turns . | . . . . . . . Heaviest Build 48 | 13 30 34 34 32 47 48 Greatest Support 80 | 40 40 40 40 40 80 80 Greatest Overweight (x) 3 | 2 . . . . . 3 Average Overweight (x) . | . . . . . . . Largest Inventory Capacity 15 | 8 15 15 15 15 15 15 Average Capacity 14 | 6 12 15 15 15 15 15 Most Carried 15 | 2 10 15 15 15 15 15 Average Carried 13 | 1 8 13 15 15 14 14 Final Capacity 15 | 8 15 15 15 15 15 15 Final Carried 15 | 2 10 15 15 15 15 13 Class Distribution -------------------- 87% | Mutant 12% | Scavenger-Mutant Dominant Class ---------------- Mutant | -10/Materials Mutant | -10/Mines Mutant | -10/Exiles Mutant | -9/Mines Scavenger-Mutant | -8/Materials Mutant | -8/Storage Resources | -11 -10 -10 -10 -9 -8 -8 ----------- Run | Yrd Mat Min Exi Min Mat Sto Matter Collected 1617 | 147 264 245 . 10 260 691 Remotely . | . . . . . . . Salvage Created 1768 | . 304 256 . 65 123 1020 Parts 111 | . 21 24 . 3 10 53 Haulers Intercepted 5 | . 1 . . . 1 3 Recyclers Shooed 2 | . . . . . . 2 Parts Field Recycled . | . . . . . . . Retrieved Matter . | . . . . . . . Parts Self-Destructed . | . . . . . . . Prevented . | . . . . . . . Kills | -11 -10 -10 -10 -9 -8 -8 ------- Run | Yrd Mat Min Exi Min Mat Sto Combat Hostiles Destroyed 45 | . 9 12 . . 3 21 Melee 1 | . . . . . . 1 Guns 14 | . 9 1 . . . 4 Cannons 25 | . . 7 . . 3 15 AOE 4 | . . 4 . . . . Classes Destroyed 10 | . 5 1 . . 1 3 Worker 1 | . . . . . . 1 Builder 1 | . . . . . 1 . Hauler 5 | . 1 . . . 1 3 Recycler 4 | . 1 . . 1 . 2 Operator 1 | . . . . . . 1 Watcher 3 | . 1 . . . 1 1 Swarmer 17 | . 8 6 . . . 3 Grunt 14 | . 1 4 . . 2 7 Sentry 13 | . . 2 . . 1 10 Hunter 1 | . . . . . . 1 Best Kill Streak 5 | . 3 5 . 1 3 4 Combat Bots Only 5 | . 3 5 . . 2 4 Max Kills in Single Turn 2 | . 1 2 . 1 1 2 Gunslinging . | . . . . . . . Exploded 2 | . . 2 . . . . Melee 1 | . . . . . . 1 Uniques/NPCs Destroyed . | . . . . . . . Combat | -11 -10 -10 -10 -9 -8 -8 -------- Run | Yrd Mat Min Exi Min Mat Sto Hostile Shots Fired 259 | . 63 35 . . 12 149 Missed 76 | . 21 10 . . 7 38 Damage Taken 2260 | . 335 297 . . 56 1572 Core 243 | . 55 59 . . . 129 Absorbed by Shields . | . . . . . . . Regen/Repaired (Parts) 316 | . . . . . . 316 Core Remaining (%) 77 | 100 . . . 54 . . Volleys Fired 173 | . 55 17 . . 15 86 Largest 2 | . 2 2 . . 2 2 Hottest 119 | . 80 78 . . 78 119 Shots Fired 319 | . 96 32 . . 30 161 Gun 141 | . 94 6 . . . 41 Cannon 171 | . . 21 . . 30 120 Launcher 7 | . 2 5 . . . . Special . | . . . . . . . Kinetic 228 | . 69 27 . . 30 102 Thermal 80 | . 21 . . . . 59 Explosive 7 | . 2 5 . . . . Electromagnetic 4 | . 4 . . . . . Robot Hit Streak 18 | . 6 5 . . 9 18 Robot Miss Streak 7 | . 4 2 . . 1 7 Penetration Max . | . . . . . . . Secondary Targets 2 | . 1 . . . . 1 Max Gunslinging Chain 1 | . 1 . . . . 1 Shots Hit Robots 187 | . 48 14 . . 21 104 Core Hits 83 | . 17 18 . . 7 41 Critical Kills 1 | . . . . . . 1 Critical Parts Destroyed 1 | . 1 . . . . . Critical Strikes 11 | . 1 . . . 2 8 Burn 3 | . . . . . . 3 Meltdown 1 | . . . . . . 1 Destroy 1 | . 1 . . . . . Blast 3 | . . . . . 2 1 Sever 3 | . . . . . . 3 Melee Attacks 12 | . . . . . . 12 Impact . | . . . . . . . Slashing 12 | . . . . . . 12 Piercing . | . . . . . . . Sneak Attacks . | . . . . . . . Combat Hostiles . | . . . . . . . Follow-up Attacks . | . . . . . . . Damage Inflicted 3640 | . 466 592 . 7 435 2140 Guns 992 | . 436 23 . . . 533 Cannons 2164 | . . 252 . . 435 1477 Explosions 318 | . 23 295 . . . . Melee 64 | . . . . . . 64 Ramming 102 | . 7 22 . 7 . 66 Kinetic 2182 | . 270 275 . . 435 1202 Thermal 939 | . 131 . . . . 808 Explosive 318 | . 23 295 . . . . Electromagnetic 35 | . 35 . . . . . Impact . | . . . . . . . Slashing 64 | . . . . . . 64 Piercing . | . . . . . . . Highest Corruption . | . . . . . . . Average Corruption . | . . . . . . . Corruption Purged . | . . . . . . . Corruption Blocked . | . . . . . . . Overload Shots . | . . . . . . . Overflow Damage 30 | . 3 9 . . 6 12 Projectiles 18 | . . . . . 6 12 Explosions 12 | . 3 9 . . . . Melee . | . . . . . . . Knockbacks 12 | . . 1 . . 7 4 Impact 1 | . . 1 . . . . Kinetic 10 | . . . . . 6 4 Secondary 1 | . . . . . 1 . Self-Inflicted Damage 35 | . . 35 . . . . Shots 1 | . . 1 . . . . Rammed 9 | . 3 3 . 2 . 1 Targets Rammed 23 | . 3 3 . 3 . 14 Kicked 13 | . . . . . . 13 Crushed 1 | . . . . 1 . . Highest Temperature 559 | . 72 108 . . . 559 Average Temperature 164 | . 25 40 . . . 203 Received Heat Transfer 855 | . 18 72 . . 27 738 Effects 27 | . . . . . . 27 Shutdowns 10 | . . . . . . 10 Energy Bleed 2 | . . . . . . 2 Interference 7 | . . . . . . 7 Matter Decay 2 | . . . . . . 2 Short Circuit 2 | . . . . . . 2 Damage (minor) 2 | . . . . . . 2 Damage (major) 2 | . . . . . . 2 Siege Activations . | . . . . . . . Robots Corrupted . | . . . . . . . Combat Hostiles . | . . . . . . . Parts Fried . | . . . . . . . Impact Corruptions . | . . . . . . . Robots Melted 1 | . . . . . . 1 Combat Hostiles 1 | . . . . . . 1 Parts Melted 8 | . . . . . . 8 Heat Transferred 2076 | . 300 . . . . 1776 Parts Sabotaged . | . . . . . . . Parts Stolen . | . . . . . . . Parts Stripped . | . . . . . . . Power Chain Reactions . | . . . . . . . Alert | -11 -10 -10 -10 -9 -8 -8 ------- Run | Yrd Mat Min Exi Min Mat Sto Peak Influence 391 | . 200 194 . 5 232 391 Initial 13 | . . 2 . . 1 13 Average 122 | . 38 82 . 1 130 165 Maximum Alert Level 1 | . 1 . . . 1 1 Low Security (%) 83 | 100 97 100 . 100 60 76 Level 1 16 | . 2 . . . 39 23 Level 2 . | . . . . . . . Level 3 . | . . . . . . . Level 4 . | . . . . . . . Level 5 . | . . . . . . . High Security . | . . . . . . . Max Security . | . . . . . . . Squads Dispatched 5 | . 1 . . . 1 3 Investigation 2 | . 1 . . . 1 . Extermination . | . . . . . . . Reinforcement 2 | . . . . . . 2 Assault 1 | . . . . . . 1 Garrison . | . . . . . . . Intercept . | . . . . . . . Searches Triggered . | . . . . . . . Construction Impeded 1 | . . . . . . 1 Haulers Reinforced . | . . . . . . . Active Scanning Responses . | . . . . . . . Cargo Convoy Interrupts . | . . . . . . . Stealth | -11 -10 -10 -10 -9 -8 -8 --------- Run | Yrd Mat Min Exi Min Mat Sto Distress Signals 4 | . 1 . . . 1 2 Communications Jammed . | . . . . . . . Distress Signals . | . . . . . . . Times Spotted 63 | . 15 12 . . 10 26 Peak Tracking Total 5 | . 5 5 . . 4 4 Tactical Retreats 2 | . 2 . . . . . Traps | -11 -10 -10 -10 -9 -8 -8 ------- Run | Yrd Mat Min Exi Min Mat Sto Traps Triggered 2 | . 1 . . . 1 . Indirectly . | . . . . . . . Trap Hack Attempts . | . . . . . . . Triggered . | . . . . . . . Disarmed . | . . . . . . . Reprogrammed . | . . . . . . . Reused . | . . . . . . . Traps Extracted . | . . . . . . . Installed . | . . . . . . . Triggered . | . . . . . . . Machines | -11 -10 -10 -10 -9 -8 -8 ---------- Run | Yrd Mat Min Exi Min Mat Sto Machines Disabled 4 | . . 2 . . . 2 Max in Single Turn 1 | . . 1 . . . 1 Garrison Access 1 | . . . . . . 1 Machines Repaired . | . . . . . . . Machines Dismantled . | . . . . . . . Machines Sabotaged . | . . . . . . . Overloaded Fab Kills . | . . . . . . . Hacking | -11 -10 -10 -10 -9 -8 -8 --------- Run | Yrd Mat Min Exi Min Mat Sto Machines Accessed 3 | . . . 1 . . 2 Terminals 1 | . . . . . . 1 Fabricators . | . . . . . . . Repair Stations 1 | . . . . . . 1 Recycling Units . | . . . . . . . Scanalyzers . | . . . . . . . Garrison Access . | . . . . . . . Total Hacks 14 | . . . 1 . . 13 Successful 12 | . . . 1 . . 11 Failed 2 | . . . . . . 2 Catastrophic . | . . . . . . . Database Lockouts . | . . . . . . . Manual 2 | . . . 1 . . 1 Terminals 2 | . . . . . . 2 Fabricators . | . . . . . . . Repair Stations 11 | . . . . . . 11 Recycling Units . | . . . . . . . Scanalyzers . | . . . . . . . Garrison Access . | . . . . . . . Terminal Hacks 2 | . . . 1 . . 1 Zone Layout 1 | . . . . . . 1 Derelict Proto ID Bank 1 | . . . 1 . . . Fabricator Hacks . | . . . . . . . Repair Station Hacks 10 | . . . . . . 10 Scan Component 6 | . . . . . . 6 Repair 4 | . . . . . . 4 Recycling Unit Hacks . | . . . . . . . Scanalyzer . | . . . . . . . Garrison Access Hacks . | . . . . . . . Unauthorized Hacks . | . . . . . . . Terminals . | . . . . . . . Fabricators . | . . . . . . . Repair Stations . | . . . . . . . Recycling Units . | . . . . . . . Scanalyzers . | . . . . . . . Garrison Access . | . . . . . . . Data Cores Recovered . | . . . . . . . Used . | . . . . . . . Hacking Detections 2 | . . . . . . 2 Full Trace Events . | . . . . . . . Feedback Events . | . . . . . . . Feedback Blocked . | . . . . . . . Robot Schematics Acquired . | . . . . . . . Robots Built . | . . . . . . . Authchips . | . . . . . . . Time . | . . . . . . . Total Robot Build Rating . | . . . . . . . Part Schematics Acquired . | . . . . . . . Parts Built . | . . . . . . . Authchips . | . . . . . . . Time . | . . . . . . . Total Part Build Rating . | . . . . . . . Parts Repaired 4 | . . . . . . 4 Time 167 | . . . . . . 167 Parts Recycled . | . . . . . . . Recycled Matter . | . . . . . . . Retrieved Matter . | . . . . . . . Retrieved Components . | . . . . . . . Parts Scanalyzed . | . . . . . . . Part Schematics Acquired . | . . . . . . . Parts Damaged . | . . . . . . . Bothacking | -11 -10 -10 -10 -9 -8 -8 ------------ Run | Yrd Mat Min Exi Min Mat Sto Used RIF Installer . | . . . . . . . Robots Hacked . | . . . . . . . Non-combat . | . . . . . . . Combat . | . . . . . . . Robot Hacks Applied . | . . . . . . . Relay Couplers Released 2 | . . . . . . 2 Machine Destruction 2 | . . . . . . 2 Fabnet Peak Effective % . | . . . . . . . Robots Rewired . | . . . . . . . Allies Hacked . | . . . . . . . Hacks Repelled . | . . . . . . . Allies | -11 -10 -10 -10 -9 -8 -8 -------- Run | Yrd Mat Min Exi Min Mat Sto Total Allies 4 | . . 4 . . . . Largest Group 4 | . . 4 4 3 3 . Highest-Rated Group 71 | . . 71 71 40 40 . Highest-Rated Ally 31 | . . 31 31 16 16 . Total Orders 2 | . . . 2 . . . EXPLORE 1 | . . . 1 . . . RETURN 1 | . . . 1 . . . Ally Attacks 35 | . . . . . 35 . Total Damage 401 | . . . . . 401 . Kills 6 | . . . . . 6 . Allies Corrupted . | . . . . . . . Allies Melted . | . . . . . . . Intel | -11 -10 -10 -10 -9 -8 -8 ------- Run | Yrd Mat Min Exi Min Mat Sto Robot Analysis Total . | . . . . . . . Derelict Logs Recovered 1 | . . 1 . . . . Drone Launches 1 | . . . 1 . . . Drone Recoveries 1 | . . . 1 . . . Exploration | -11 -10 -10 -10 -9 -8 -8 ------------- Run | Yrd Mat Min Exi Min Mat Sto Turns Passed 7000 | 88 1020 1285 478 69 580 3480 Spaces Moved 2789 | 53 524 751 250 39 308 864 Core 9 | 9 . . . . . . Treads 2123 | 44 524 751 250 39 308 207 Legs 657 | . . . . . . 657 Wheels . | . . . . . . . Hover . | . . . . . . . Flight . | . . . . . . . Fastest Speed 50 | 50 160 160 160 160 160 120 Average Speed 150 | 146 160 160 160 160 160 130 Slowest Speed 330 | 160 160 160 160 160 160 330 Overloaded Moves . | . . . . . . . Propulsion Burnouts . | . . . . . . . Robots Hopped . | . . . . . . . Cave-ins Triggered . | . . . . . . . Exploration Rate (%) 48 | 5 56 94 91 10 16 65 Regions Visited 6 Branch Regions 4 Pre-discovered Areas . | . . . . . . . Known Exits Taken . | . . . . . . . Unknown Exits Taken 6 | 1 1 1 1 1 1 . Scrap Searched 1 | . . 1 . . . . Spaces Dug 11 | . 8 3 . . . . Terrain Destroyed 56 | . 18 28 . . 2 8 Melee . | . . . . . . . Projectile 11 | . . 1 . . 2 8 AOE 45 | . 18 27 . . . . Terrain Rammed . | . . . . . . . Walls Destroyed . | . . . . . . . Machines Disabled . | . . . . . . . Actions | -11 -10 -10 -10 -9 -8 -8 --------- Run | Yrd Mat Min Exi Min Mat Sto Total 5251 | 61 625 798 328 44 369 3026 Wait 2105 | . 12 10 76 3 8 1996 Move 2784 | 52 523 750 249 39 307 864 Hop . | . . . . . . . Pick Up 39 | 3 14 4 1 . 9 8 Fast Attach 32 | 5 5 1 . . 8 13 Attach 7 | 1 . 1 . . 3 2 Detach 3 | . 1 1 . . 1 . Swap 27 | . 2 9 1 . 3 12 Drop 47 | . 10 2 1 . 15 19 Fire 173 | . 55 17 . . 15 86 Melee 12 | . . . . . . 12 Ram . | . . . . . . . Kick 13 | . . . . . . 13 Crush 9 | . 3 3 . 2 . 1 Escape Stasis . | . . . . . . . Rewire . | . . . . . . . Trap . | . . . . . . . Miscellaneous . | . . . . . . . Route ------- -11/Scrapyard -10/Materials (discovered 3 exits: [*Mat x2] / [*Min]) -10/Mines (discovered 2 exits: [*Mat] / *Exi) -10/Exiles (discovered 2 exits: [*Min x2]) -9/Mines -8/Materials -8/Storage History --------- Turn | Location | Event 10 | -11/Scrapyard | Discovered new exit (range 15) 89 | -11/Scrapyard | Entered Materials 334 | -10/Materials | Build established: Mutant 511 | -10/Materials | Discovered new exit (range 14) 581 | -10/Materials | Discovered new exit (range 6) 674 | -10/Materials | Discovered new exit (range 3) 1109 | -10/Materials | Entered Mines 1113 | -10/Mines | Joined a pair of Derelicts in attacking an 0b10 outpost 1155 | -10/Mines | Met a Derelict bent on vengeance 1523 | -10/Mines | Learned Materials garrison access intel 1716 | -10/Mines | Discovered new exit (range 8) 1946 | -10/Mines | Assisted by bots powering up and referring to "LRC-V3" 2261 | -10/Mines | Received a Mining Laser from a helpful Derelict 2381 | -10/Mines | Deemed a non-threat by the Exiles lab entrance 2381 | -10/Mines | Discovered new exit (range 5) 2394 | -10/Mines | Entered Exiles 2394 | -10/Exiles | Accompanied by 4 allies 2433 | -10/Exiles | Met 8R-AWN 2460 | -10/Exiles | Met EX-HEX 2524 | -10/Exiles | Met EX-BIN 2554 | -10/Exiles | Aligned with FarCom system 2556 | -10/Exiles | Given EX-Vault access code 2602 | -10/Exiles | Opened EX-Vault 2617 | -10/Exiles | Found Supersonic Drone Bay 2634 | -10/Exiles | Discovered new exit (range 54) 2641 | -10/Exiles | Discovered new exit (range 65) 2656 | -10/Exiles | Warned to stay clear of 0b10 Research branches 2676 | -10/Exiles | Exiles lab attacked by MAIN.C 2872 | -10/Exiles | Left Exiles lab with Supersonic Drone Bay 2872 | -10/Exiles | Entered Mines 2872 | -9/Mines | Accompanied by 3 allies 2905 | -9/Mines | Assembled infested the area 2910 | -9/Mines | Assisted by a Guerilla fighting off Assembled 2931 | -9/Mines | Discovered new exit (range 6) 2941 | -9/Mines | Entered Materials 2941 | -8/Materials | Accompanied by 3 allies 2941 | -8/Materials | Evolved 4 slots: Power x1, Propulsion x2, Utility x1 2942 | -8/Materials | Loaded intel: 1 garrison access location 3069 | -8/Materials | Discovered new exit (range 6) 3410 | -8/Materials | Build established: Scavenger-Mutant 3521 | -8/Materials | Entered Storage 4339 | -8/Storage | Build established: Mutant 6613 | -8/Storage | Repaired Lgt. Nuclear Core 6652 | -8/Storage | Repaired Carbon-fiber Leg 6692 | -8/Storage | Repaired Carbon-fiber Leg 6823 | -8/Storage | Repaired Broken Carbon-fiber Leg 7001 | -8/Storage | Self-destructed Last Messages --------------- Rating: 3 Time: 53 >>Repair Repairing Broken Carbon-fiber Leg... ETC: 53 Repair station completes Broken Carbon-fiber Leg repairs. Connecting with Repair Station... >>Scan(Carbon-fiber Leg) Scanning Carbon-fiber Leg... Ready to Repair: Carbon-fiber Leg Rating: 3 Time: 38 K-01 Serf cleans the Transfer Shaft. Kicked U-05 Engineer out of the way. Acquired 6 matter. Acquired 4 matter. K-01 Serf cleans the Transfer Shaft. Acquired 26 matter. Map ----- +----------------------------------------------------+ | # # #???????????????# [%!% # #????# | | # # #?????????????#####+#### ###### | | # # """" #????????????##[[ # ##?# + | | # # """" #????????????# # ##?# # | | # + """" """#????????????## # ##?# # | | # # """" Y"#?????#########" # ##?# + | | # # """####### ##T %# #### # | | # # + + ##" # % + | | # #####+##### %# ## # ##### ##### #### | | # #???# #???# # ###+## #???# #???# #??# | | # #???# #???# + + #???# #???# #??? | | # #???# #???# # % # #???# #???# #??? | | # ##### ##### ####+### #??##/#####+#??? | | # ^ % #??# ????? | | # #####+############## #### #??# """????? | | # #?# ##?????????# ####+##+##?# " ????? | | # #?# ########### + ### " ????? | | # #?# # # ##""" + + " ????? | | # #?# # """" # ##""" ### " ????? | | # #?### # " "" # ##""" #?# """????? | | # #???# ###+ " """ # ## % #?# ???? | | # #????#??## """ " # ##""" #######+####??? | | # #????????# ""??" + %#""" #?????? ????? | | # ##???????# """" # #"" ##?????? ???? | | # ##???????# # %+ % %#??????? ??? | | # ###############+#### @##############????? #?? | | # %# """"" # ### u# """"" #????? #?? | | # %# """"" + # """"" #?????? #?? | | #% + """"" # = + """"" #???????#?? | | #% %# # ###%## #?????????? | | # # ## ##?#k## #?????????? | | #% ############## #??#%##### #########?????????? | | # #??####### ### ####+#######?????????????????? | | # #??# ## ## ###????????????????? | | # #??# """ ## ## """ ""#????????????????? | | # #??# """ # # """ Y"#????????????????? | | # #??# """ # # """ ""#????????????????? | | # #??# % # + ###????????????????? | | # ##?# ]% """ # # #?????????????????? | | ### %""" ## ## " " ##?????????????????? | | + """ ## ## "R" #??????????????????? | | ### ## ## """ #??????????????????? | | #?######+#### ###########??????????????????? | | #????# ### #T####???????????????????????? | | ## ######## # " #???????????????????????? | | ?# + #???????????????????????? | | ?# ######## ### ##=" #???????????????????????? | | ?# #??????## ##?# #######???????????????????????? | | ?#+######### #??# #?????????????????????????????? | | ? # #??# #?????????????????????????????? | +----------------------------------------------------+ Best States ------------- Heat Dissipation 45 Energy Generation 23 Energy Capacity 250 Matter Stores 300 Matter Capacity 300 Sight Range 16 Terrain Scan Density 10 Armor Coverage 225 Evasion (%) 55 Recoil Reduction 4 Offensive Hacking 10 Item Schematics ----------------- None Robot Schematics ------------------ None Fabricated ------------ Nothing Alien Tech Used ----------------- None Achievements -------------- None Challenges ------------ None Game ------ Seed LinearAntimissileRefractor Manual? 0 Play Time 00:43:15 Cumulative 11.1 hours Start 2024.04.12 @ 23:40:02 End 2024.04.13 @ 09:35:10 Sessions 3 Manual Loads 0 Difficulty Rogue Special Mode None Game No. 18 Rogue 15 Adventurer 0 Explorer 3 Win Type - Total 0 Types 0/0/0/0/0/0/0/0/0 Lore% 12 Gallery% 20 Achievement% 17 Wizard Run 0 Options --------- Layout 1 ASCII 0 Keyboard 0 Movement Arrows Keybinds 0 Fullscreen 0 Font 28/SmallcapsGlow Map View 50x43 Zoom Use 0% Tactical HUD 0 Map Filters NONE Filters NONE Steam 1 RUN: dcf5f86c-066c-4b52-b59e-317a50592253